[Event "19th Prague Open-A 2020"]
[Site "Prague"]
[Date "2020.01.12"]
[Round "4.10"]
[White "Liu, Zhaoqi"]
[Black "Toman, Jan"]
[Result "1-0"]
[ECO "A16"]
[WhiteElo "2328"]
[BlackElo "2101"]
[Annotator "ChessBase"]
[PlyCount "94"]
[EventDate "2020.01.10"]
[EventType "swiss"]
[EventCountry "CZE"]
[SourceTitle "playchess.com"]
[Source "ChessBase"]
[SourceQuality "1"]
[TimeControl "40/5400+30:1800+30"]

1. c4 {[%emt 0:03:42]} Nf6 {[%emt 0:00:00]} 2. Nc3 {[%emt 0:00:12]} g6 {[%emt 0:00:23]} 3. g3 {[%emt 0:00:06]} Bg7 {[%emt 0:00:39]} 4. Bg2 {[%emt 0:00:11]} c6 {[%emt 0:00:35]} 5. e4 {[%emt 0:01:48]} d6 {[%emt 0:01:09]} 6. Nge2 {[%emt 0:00:17]} e5 {[%emt 0:03:18]} 7. d4 {[%emt 0:00:15]} exd4 {[%emt 0:01:23]} 8. Nxd4 {[%emt 0:00:09]} O-O {[%emt 0:02:18]} 9. O-O {[%emt 0:00:08]} Nbd7 {[%emt 0:06:46]} 10. h3 {[%emt 0:06:16]} Re8 {[%emt 0:01:41]} 11. Re1 {[%emt 0:03:44]} Nc5 {[%emt 0:14:31]} 12. b4 {[%emt 0:05:56]} Ne6 {[%emt 0:00:58]} 13. Nb3 {[%emt 0:06:21]} Nh5 {[%emt 0:14:46]} 14. Qd3 {[%emt 0:04:18]} Qf6 {[%emt 0:24:57]} 15. Bd2 {[%emt 0:01:21]} Ng5 {[%emt 0:02:00]} 16. Kh2 {[%emt 0:11:25]} Nxh3 {[%emt 0:01:09]} 17. Bxh3 {[%emt 0:00:07]} Qxf2+ {[%emt 0:00:14]} 18. Bg2 {[%emt 0:00:07]} Nxg3 {[%emt 0:00:16]} 19. Qf3 {[%emt 0:04:18]} Qxf3 {[%emt 0:08:05]} 20. Bxf3 {[%emt 0:00:02]} Be5 {[%emt 0:00:48]} 21. Kg2 {[%emt 0:00:01]} h5 {[%emt 0:01:09]} 22. Rac1 {[%emt 0:00:04]} f6 {[%emt 0:05:09]} 23. Ne2 {[%emt 0:00:26]} Nxe2 {[%emt 0:01:00]} 24. Rxe2 {[%emt 0:00:01]} Be6 {[%emt 0:01:31]} 25. Na5 {[%emt 0:02:37]} Re7 {[%emt 0:00:34]} 26. Bc3 {[%emt 0:00:01]} Rh7 {[%emt 0:02:11]} 27. Bxe5 {[%emt 0:00:08]} dxe5 {[%emt 0:00:07]} 28. Rd2 {[%emt 0:00:19]} g5 {[%emt 0:02:01]} 29. Nb3 {[%emt 0:01:31]} Rf8 {[%emt 0:01:13]} 30. Nc5 {[%emt 0:01:02]} Bc8 {[%emt 0:00:01]} 31. Rcd1 {[%emt 0:00:02]} g4 {[%emt 0:02:00]} 32. Be2 {[%emt 0:00:01]} f5 {[%emt 0:00:39]} 33. exf5 {[%emt 0:00:12]} Bxf5 {[%emt 0:00:16]} 34. Nd7 {[%emt 0:00:51]} Be4+ {[%emt 0:00:53]} 35. Kg1 {[%emt 0:00:01]} Rf5 {[%emt 0:00:04]} 36. Nc5 {[%emt 0:00:02]} Bf3 {[%emt 0:00:44]} 37. Rd8+ {[%emt 0:00:43]} Kg7 {[%emt 0:00:51]} 38. R1d7+ {[%emt 0:00:21]} Kh6 {[%emt 0:00:41]} 39. Rxh7+ {[%emt 0:00:37]} Kxh7 {[%emt 0:00:02]} 40. Bd3 {[%emt 0:00:36]} e4 {[%emt 0:00:28]} 41. Nxe4 {[%emt 0:30:24]} Kh6 {[%emt 0:31:21]} 42. Ng3 {[%emt 0:06:56]} Rf7 {[%emt 0:00:00]} 43. Rh8+ {[%emt 0:00:00]} Kg5 {[%emt 0:00:00]} 44. Rxh5+ {[%emt 0:00:00]} Kf4 {[%emt 0:00:00]} 45. Kf2 {[%emt 0:00:00]} b6 {[%emt 0:00:00]} 46. a3 {[%emt 0:00:00]} Rf6 {[%emt 0:00:00]} 47. Rh7 {[%emt 0:00:00]} a5 {[%emt 0:00:00]} 1-0

[Event "19th Prague Open-A 2020"]
[Site "Prague"]
[Date "2020.01.12"]
[Round "4.11"]
[White "Strebkovs, Andrejs"]
[Black "Jordanov Mihail"]
[Result "1-0"]
[ECO "E15"]
[WhiteElo "2278"]
[BlackElo "2012"]
[Annotator "ChessBase"]
[PlyCount "111"]
[EventDate "2020.01.10"]
[EventType "swiss"]
[EventCountry "CZE"]
[SourceTitle "playchess.com"]
[Source "ChessBase"]
[SourceQuality "1"]
[TimeControl "40/5400+30:1800+30"]

1. d4 {[%emt 0:00:00]} Nf6 {[%emt 0:00:00]} 2. c4 {[%emt 0:00:00]} e6 {[%emt 0:00:00]} 3. Nf3 {[%emt 0:00:04]} b6 {[%emt 0:00:00]} 4. g3 {[%emt 0:00:20]} Ba6 {[%emt 0:00:21]} 5. b3 {[%emt 0:00:22]} Bb4+ {[%emt 0:00:39]} 6. Bd2 {[%emt 0:00:35]} Be7 {[%emt 0:01:39]} 7. Bg2 {[%emt 0:01:41]} O-O {[%emt 0:01:20]} 8. O-O {[%emt 0:00:31]} c6 {[%emt 0:01:17]} 9. Bc3 {[%emt 0:01:49]} d5 {[%emt 0:00:59]} 10. Ne5 {[%emt 0:00:46]} Nfd7 {[%emt 0:01:20]} 11. Nxd7 {[%emt 0:01:04]} Nxd7 {[%emt 0:00:12]} 12. Nd2 {[%emt 0:00:47]} f5 {[%emt 0:09:04]} 13. Re1 {[%emt 0:04:42]} Nf6 {[%emt 0:21:04]} 14. a4 {[%emt 0:07:06]} Qc7 {[%emt 0:13:55]} 15. Rc1 {[%emt 0:03:11]} Rad8 {[%emt 0:08:31]} 16. Qc2 {[%emt 0:04:28]} Ne4 {[%emt 0:11:57]} 17. Nxe4 {[%emt 0:05:46]} dxe4 {[%emt 0:00:26]} 18. f3 {[%emt 0:06:04]} Bg5 {[%emt 0:00:28]} 19. e3 {[%emt 0:03:14]} exf3 {[%emt 0:01:26]} 20. Bxf3 {[%emt 0:00:11]} Bb7 {[%emt 0:00:29]} 21. Rcd1 {[%emt 0:02:11]} c5 {[%emt 0:01:23]} 22. d5 {[%emt 0:01:58]} exd5 {[%emt 0:03:14]} 23. cxd5 {[%emt 0:01:00]} Qf7 {[%emt 0:03:20]} 24. Qg2 {[%emt 0:02:56]} Rd7 {[%emt 0:03:29]} 25. e4 {[%emt 0:05:35]} Rfd8 {[%emt 0:04:50]} 26. e5 {[%emt 0:05:09]} Bxd5 {[%emt 0:01:33]} 27. Rxd5 {[%emt 0:00:20]} Rxd5 {[%emt 0:00:30]} 28. e6 {[%emt 0:00:15]} Qb7 {[%emt 0:01:00]} 29. e7 {[%emt 0:04:12]} Bxe7 {[%emt 0:00:16]} 30. Bxd5+ {[%emt 0:00:15]} Rxd5 {[%emt 0:00:47]} 31. Rxe7 {[%emt 0:00:37]} Rd1+ {[%emt 0:01:14]} 32. Re1 {[%emt 0:00:16]} Qxg2+ {[%emt 0:00:20]} 33. Kxg2 {[%emt 0:00:03]} Rd3 {[%emt 0:00:07]} 34. Rc1 {[%emt 0:02:07]} a6 {[%emt 0:01:26]} 35. Kf2 {[%emt 0:00:39]} b5 {[%emt 0:00:34]} 36. Ke2 {[%emt 0:00:58]} Rd7 {[%emt 0:01:12]} 37. Bd2 {[%emt 0:01:17]} bxa4 {[%emt 0:01:49]} 38. bxa4 {[%emt 0:00:08]} Rd4 {[%emt 0:00:32]} 39. a5 {[%emt 0:00:25]} c4 {[%emt 0:04:40]} 40. Rb1 {[%emt 0:03:02]} Re4+ {[%emt 0:00:10]} 41. Kd1 {[%emt 0:32:34]} Re7 {[%emt 0:05:20]} 42. Rb6 {[%emt 0:00:00]} Ra7 {[%emt 0:00:06]} 43. Rc6 {[%emt 0:00:00]} Kf7 {[%emt 0:00:13]} 44. Kc2 {[%emt 0:00:00]} Ke7 {[%emt 0:03:35]} 45. Kc3 {[%emt 0:00:00]} Kd7 {[%emt 0:00:17]} 46. Rxc4 {[%emt 0:00:00]} Kd6 {[%emt 0:00:44]} 47. Be3 {[%emt 0:00:00]} Rb7 {[%emt 0:00:23]} 48. Rb4 {[%emt 0:00:00]} Rxb4 {[%emt 0:01:27]} 49. Kxb4 {[%emt 0:00:00]} Kd5 {[%emt 0:00:14]} 50. Bc5 {[%emt 0:00:00]} g5 {[%emt 0:00:20]} 51. Be7 {[%emt 0:00:00]} h6 {[%emt 0:01:09]} 52. Bf8 {[%emt 0:00:00]} h5 {[%emt 0:01:42]} 53. Bh6 {[%emt 0:00:00]} h4 {[%emt 0:00:36]} 54. gxh4 {[%emt 0:00:00]} gxh4 {[%emt 0:00:13]} 55. h3 {[%emt 0:00:00]} Ke4 {[%emt 0:00:14]} 56. Bg5 {[%emt 0:00:00]} 1-0

[Event "19th Prague Open-A 2020"]
[Site "Prague"]
[Date "2020.01.12"]
[Round "4.12"]
[White "Wang, Yukun"]
[Black "Neuman, Petr"]
[Result "1/2-1/2"]
[ECO "B90"]
[WhiteElo "1990"]
[BlackElo "2371"]
[Annotator "ChessBase"]
[PlyCount "67"]
[EventDate "2020.01.10"]
[EventType "swiss"]
[EventCountry "CZE"]
[SourceTitle "playchess.com"]
[Source "ChessBase"]
[SourceQuality "1"]
[TimeControl "40/5400+30:1800+30"]

1. e4 {[%emt 0:00:00]} c5 {[%emt 0:00:00]} 2. Nf3 {[%emt 0:00:00]} d6 {[%emt 0:00:00]} 3. d4 {[%emt 0:00:00]} cxd4 {[%emt 0:00:00]} 4. Nxd4 {[%emt 0:00:00]} Nf6 {[%emt 0:00:01]} 5. Nc3 {[%emt 0:00:00]} a6 {[%emt 0:00:03]} 6. Be3 {[%emt 0:01:27]} e6 {[%emt 0:00:34]} 7. f3 {[%emt 0:02:12]} b5 {[%emt 0:00:15]} 8. g4 {[%emt 0:00:05]} Bb7 {[%emt 0:00:37]} 9. Qd2 {[%emt 0:00:14]} Nfd7 {[%emt 0:01:15]} 10. g5 {[%emt 0:04:45]} Nb6 {[%emt 0:00:22]} 11. Bd3 {[%emt 0:14:16]} N8d7 {[%emt 0:01:11]} 12. a4 {[%emt 0:04:11]} bxa4 {[%emt 0:17:47]} 13. Nxa4 {[%emt 0:02:49]} Nxa4 {[%emt 0:01:21]} 14. Rxa4 {[%emt 0:00:03]} d5 {[%emt 0:01:40]} 15. Nb3 {[%emt 0:07:05]} Bc6 {[%emt 0:17:41]} 16. Rxa6 {[%emt 0:01:14]} Rxa6 {[%emt 0:00:38]} 17. Bxa6 {[%emt 0:00:04]} dxe4 {[%emt 0:02:15]} 18. Nd4 {[%emt 0:20:43]} Ba8 {[%emt 0:06:37]} 19. O-O {[%emt 0:03:45]} Bc5 {[%emt 0:04:38]} 20. b4 {[%emt 0:00:28]} Bb6 {[%emt 0:00:06]} 21. c4 {[%emt 0:01:03]} O-O {[%emt 0:00:19]} 22. c5 {[%emt 0:03:01]} Bxc5 {[%emt 0:00:11]} 23. bxc5 {[%emt 0:00:21]} Nxc5 {[%emt 0:00:06]} 24. Be2 {[%emt 0:00:26]} exf3 {[%emt 0:01:41]} 25. Nxf3 {[%emt 0:00:51]} Qxd2 {[%emt 0:01:32]} 26. Nxd2 {[%emt 0:00:04]} Ne4 {[%emt 0:00:20]} 27. Bf3 {[%emt 0:03:39]} Nc3 {[%emt 0:01:03]} 28. Bxa8 {[%emt 0:02:00]} Rxa8 {[%emt 0:00:04]} 29. Nc4 {[%emt 0:00:34]} Nd5 30. Bd2 {[%emt 0:04:40]} Ra2 {[%emt 0:17:50]} 31. Rb1 {[%emt 0:01:04]} f6 {[%emt 0:00:09]} 32. Rb7 {[%emt 0:01:15]} fxg5 {[%emt 0:00:54]} 33. Bxg5 {[%emt 0:01:31]} h6 {[%emt 0:00:05]} 34. Bd8 1/2-1/2

[Event "19th Prague Open-A 2020"]
[Site "Prague"]
[Date "2020.01.12"]
[Round "4.15"]
[White "Mis, Mieszko"]
[Black "Sindler, Michal"]
[Result "1-0"]
[ECO "E62"]
[WhiteElo "2349"]
[BlackElo "2119"]
[Annotator "ChessBase"]
[PlyCount "65"]
[EventDate "2020.01.10"]
[EventType "swiss"]
[EventCountry "CZE"]
[SourceTitle "playchess.com"]
[Source "ChessBase"]
[SourceQuality "1"]
[TimeControl "40/5400+30:1800+30"]

1. d4 {[%emt 0:00:00]} Nf6 {[%emt 0:02:02]} 2. c4 {[%emt 0:00:00]} g6 {[%emt 0:00:16]} 3. g3 {[%emt 0:00:00]} Bg7 {[%emt 0:00:07]} 4. Bg2 {[%emt 0:00:00]} O-O {[%emt 0:00:30]} 5. Nc3 {[%emt 0:00:00]} d6 {[%emt 0:00:26]} 6. Nf3 {[%emt 0:00:00]} c6 {[%emt 0:00:08]} 7. O-O {[%emt 0:00:07]} Qa5 {[%emt 0:00:03]} 8. e4 {[%emt 0:00:04]} e5 {[%emt 0:00:25]} 9. h3 {[%emt 0:00:06]} Nbd7 {[%emt 0:00:39]} 10. Re1 {[%emt 0:01:17]} exd4 {[%emt 0:00:30]} 11. Nxd4 {[%emt 0:00:08]} Ne5 {[%emt 0:00:08]} 12. Bf1 {[%emt 0:00:55]} Re8 {[%emt 0:01:41]} 13. Be3 {[%emt 0:05:41]} c5 {[%emt 0:02:19]} 14. Nb3 {[%emt 0:11:48]} Qb4 {[%emt 0:08:30]} 15. Bd2 {[%emt 0:17:18]} Qb6 {[%emt 0:21:15]} 16. Nb5 {[%emt 0:08:47]} Be6 {[%emt 0:30:14]} 17. Ba5 {[%emt 0:00:55]} Qc6 {[%emt 0:00:43]} 18. Nc7 {[%emt 0:02:08]} Nxc4 {[%emt 0:03:21]} 19. Nxa8 {[%emt 0:08:37]} Rxa8 {[%emt 0:02:28]} 20. Bc3 {[%emt 0:01:28]} Qc7 {[%emt 0:12:23]} 21. Qc2 {[%emt 0:01:26]} Nb6 {[%emt 0:03:58]} 22. e5 {[%emt 0:01:31]} dxe5 {[%emt 0:04:09]} 23. Bxe5 {[%emt 0:00:11]} Qc8 {[%emt 0:00:12]} 24. Qxc5 {[%emt 0:00:58]} Bxh3 {[%emt 0:00:56]} 25. Qxc8+ {[%emt 0:01:34]} Bxc8 {[%emt 0:00:19]} 26. Bg2 {[%emt 0:00:33]} Nc4 {[%emt 0:00:32]} 27. Bd4 {[%emt 0:01:58]} Be6 {[%emt 0:00:18]} 28. Rac1 {[%emt 0:00:09]} Nb6 {[%emt 0:01:13]} 29. Nc5 {[%emt 0:01:14]} Bxa2 {[%emt 0:00:20]} 30. b3 {[%emt 0:00:26]} Rd8 {[%emt 0:00:52]} 31. Bxf6 {[%emt 0:00:31]} Bxf6 {[%emt 0:00:29]} 32. Re2 {[%emt 0:00:05]} Bg5 {[%emt 0:01:59]} 33. f4 {[%emt 0:00:05]} 1-0

[Event "19th Prague Open-A 2020"]
[Site "Prague"]
[Date "2020.01.12"]
[Round "4.16"]
[White "Tsotsonava, Elene"]
[Black "Priehoda, Vitezslav"]
[Result "0-1"]
[ECO "C03"]
[WhiteElo "2078"]
[BlackElo "2341"]
[Annotator "ChessBase"]
[PlyCount "38"]
[EventDate "2020.01.10"]
[EventType "swiss"]
[EventCountry "CZE"]
[SourceTitle "playchess.com"]
[Source "ChessBase"]
[SourceQuality "1"]
[TimeControl "40/5400+30:1800+30"]

1. e4 {[%emt 0:00:00]} e6 {[%emt 0:00:00]} 2. d4 {[%emt 0:00:00]} d5 {[%emt 0:00:00]} 3. Nd2 {[%emt 0:00:06]} h6 {[%emt 0:00:00]} 4. exd5 {[%emt 0:03:20]} exd5 {[%emt 0:00:16]} 5. Ngf3 {[%emt 0:00:20]} Bd6 {[%emt 0:06:29]} 6. Bd3 {[%emt 0:06:06]} Nc6 {[%emt 0:03:44]} 7. O-O {[%emt 0:02:32]} Nb4 {[%emt 0:03:36]} 8. Qe2+ {[%emt 0:11:12]} Ne7 {[%emt 0:06:02]} 9. c4 {[%emt 0:00:40]} Nxd3 10. Qxd3 dxc4 11. Nxc4 O-O 12. Nxd6 Qxd6 13. Re1 Be6 14. Ne5 Rad8 15. Be3 Qxe5 16. Qa3 Qd6 17. Qxa7 Bd5 18. Qa4 Qg6 19. g3 Qe4 0-1

[Event "19th Prague Open-A 2020"]
[Site "Prague"]
[Date "2020.01.13"]
[Round "5.14"]
[White "Koubova, Anna Marie"]
[Black "Czerw, Dawid"]
[Result "1/2-1/2"]
[ECO "D43"]
[WhiteElo "1930"]
[BlackElo "2262"]
[Annotator "RC"]
[PlyCount "60"]
[EventDate "2020.01.10"]
[EventType "swiss"]
[EventCountry "CZE"]
[SourceTitle "playchess.com"]
[Source "ChessBase"]
[SourceQuality "1"]
[TimeControl "40/5400+30:1800+30"]

1. d4 {[%emt 0:00:00]} Nf6 {[%emt 0:00:07]} 2. c4 {[%emt 0:00:00]} e6 {[%emt 0:00:03]} 3. Nf3 {[%emt 0:00:00]} d5 {[%emt 0:00:07]} 4. Nc3 {[%emt 0:00:24]} c6 {[%emt 0:00:05]} 5. cxd5 {[%emt 0:00:09]} exd5 {[%emt 0:00:05]} 6. Bg5 {[%emt 0:00:09]} Nbd7 {[%emt 0:00:04]} 7. e3 {[%emt 0:00:16]} Qa5 {[%emt 0:00:16]} 8. Nd2 {[%emt 0:08:49]} Bb4 {[%emt 0:01:41]} 9. Qc2 {[%emt 0:01:07]} O-O {[%emt 0:01:34]} 10. Bd3 {[%emt 0:01:03]} Ne4 {[%emt 0:10:47]} 11. Bxe4 {[%emt 0:14:55]} dxe4 {[%emt 0:03:08]} 12. Bf4 {[%emt 0:00:11]} Nf6 {[%emt 0:21:32]} 13. O-O {[%emt 0:05:07]} Bxc3 {[%emt 0:11:39]} 14. bxc3 {[%emt 0:05:09]} Nd5 {[%emt 0:06:28]} 15. Nxe4 {[%emt 0:24:38]} f5 {[%emt 0:06:12]} 16. Nd6 {[%emt 0:01:35]} Qxc3 {[%emt 0:01:34]} 17. Qxc3 {[%emt 0:02:11]} Nxc3 {[%emt 0:00:03]} 18. Be5 {[%emt 0:01:14]} b6 {[%emt 0:02:11]} 19. f3 {[%emt 0:04:05]} Be6 {[%emt 0:02:44]} 20. Rf2 {[%emt 0:00:16]} Nd5 {[%emt 0:02:21]} 21. Re2 {[%emt 0:03:33]} Ne7 {[%emt 0:02:20]} 22. Rc1 {[%emt 0:01:24]} Rfd8 {[%emt 0:01:55]} 23. e4 {[%emt 0:01:59]} fxe4 {[%emt 0:01:32]} 24. fxe4 {[%emt 0:00:10]} Rd7 {[%emt 0:00:47]} 25. Rf2 {[%emt 0:11:25]} Rad8 {[%emt 0:04:52]} 26. Nf5 {[%emt 0:01:45]} Bxf5 {[%emt 0:04:45]} 27. exf5 {[%emt 0:00:07]} c5 {[%emt 0:02:00]} 28. dxc5 {[%emt 0:03:32]} Rd1+ {[%emt 0:04:17]} 29. Rf1 {[%emt 0:00:11]} Rxc1 {[%emt 0:02:42]} 30. Rxc1 {[%emt 0:00:06]} Rd5 {[%emt 0:00:05]} 1/2-1/2

[Event "19th Prague Open-A 2020"]
[Site "Prague"]
[Date "2020.01.15"]
[Round "7.12"]
[White "Neuman, Petr"]
[Black "Svanda, Ondrej"]
[Result "1-0"]
[ECO "B44"]
[WhiteElo "2371"]
[BlackElo "2257"]
[Annotator "ChessBase"]
[PlyCount "89"]
[EventDate "2020.01.10"]
[EventType "swiss"]
[EventCountry "CZE"]
[SourceTitle "playchess.com"]
[Source "ChessBase"]
[SourceQuality "1"]
[TimeControl "40/5400+30:1800+30"]

1. e4 {[%emt 0:00:53]} c5 {[%emt 0:00:00]} 2. Nf3 {[%emt 0:00:05]} e6 {[%emt 0:00:00]} 3. d4 {[%emt 0:00:05]} cxd4 {[%emt 0:00:00]} 4. Nxd4 {[%emt 0:00:04]} Nc6 {[%emt 0:00:00]} 5. Nb5 {[%emt 0:01:21]} d6 {[%emt 0:02:09]} 6. c4 {[%emt 0:00:56]} a6 {[%emt 0:01:41]} 7. N5c3 {[%emt 0:02:35]} Nf6 {[%emt 0:00:57]} 8. Be2 {[%emt 0:00:18]} Be7 {[%emt 0:00:08]} 9. O-O {[%emt 0:00:18]} O-O {[%emt 0:01:19]} 10. Be3 {[%emt 0:00:32]} b6 {[%emt 0:01:40]} 11. Nd2 {[%emt 0:17:56]} Nd7 {[%emt 0:05:41]} 12. Rc1 {[%emt 0:01:37]} Bb7 {[%emt 0:01:28]} 13. a3 {[%emt 0:00:13]} Bf6 {[%emt 0:07:35]} 14. Re1 {[%emt 0:05:34]} Rc8 {[%emt 0:04:24]} 15. Bf1 {[%emt 0:02:35]} Qc7 {[%emt 0:19:02]} 16. f4 {[%emt 0:06:49]} Bd4 {[%emt 0:07:02]} 17. Qe2 {[%emt 0:03:44]} Bxe3+ {[%emt 0:03:11]} 18. Qxe3 {[%emt 0:00:13]} Qb8 {[%emt 0:00:27]} 19. b4 {[%emt 0:01:08]} Ba8 {[%emt 0:03:56]} 20. Red1 {[%emt 0:02:03]} Nf6 {[%emt 0:01:37]} 21. Be2 {[%emt 0:08:18]} Rcd8 {[%emt 0:04:03]} 22. Nb3 {[%emt 0:02:51]} Rfe8 {[%emt 0:02:21]} 23. Bf3 {[%emt 0:02:39]} Re7 {[%emt 0:06:56]} 24. g4 {[%emt 0:07:23]} h6 {[%emt 0:03:28]} 25. h4 {[%emt 0:00:37]} d5 {[%emt 0:08:35]} 26. cxd5 {[%emt 0:15:50]} exd5 {[%emt 0:00:02]} 27. e5 {[%emt 0:00:05]} d4 {[%emt 0:00:06]} 28. Nxd4 {[%emt 0:01:10]} Nxd4 {[%emt 0:00:06]} 29. Rxd4 {[%emt 0:00:14]} Rxd4 {[%emt 0:02:41]} 30. Qxd4 {[%emt 0:00:15]} Bxf3 {[%emt 0:01:54]} 31. exf6 {[%emt 0:00:06]} gxf6 {[%emt 0:00:07]} 32. Kf2 {[%emt 0:03:12]} Bb7 {[%emt 0:02:21]} 33. Rd1 {[%emt 0:03:46]} Re6 {[%emt 0:03:11]} 34. Qd8+ {[%emt 0:03:10]} Qxd8 {[%emt 0:00:02]} 35. Rxd8+ {[%emt 0:00:06]} Kg7 {[%emt 0:00:23]} 36. Ne2 {[%emt 0:00:06]} Re4 {[%emt 0:05:26]} 37. Rd4 {[%emt 0:01:48]} f5 {[%emt 0:01:38]} 38. g5 {[%emt 0:03:18]} hxg5 {[%emt 0:01:41]} 39. fxg5 {[%emt 0:00:42]} a5 {[%emt 0:01:36]} 40. h5 {[%emt 0:04:30]} axb4 {[%emt 0:00:26]} 41. axb4 {[%emt 0:30:14]} Re7 {[%emt 0:14:20]} 42. Rd6 {[%emt 0:00:00]} Re4 {[%emt 0:05:11]} 43. Rd4 {[%emt 0:00:00]} Re7 {[%emt 0:00:13]} 44. Ng3 {[%emt 0:00:00]} Be4 {[%emt 0:02:23]} 45. Rxe4 {[%emt 0:00:00]} 1-0

[Event "19th Prague Open-A 2020"]
[Site "Prague"]
[Date "2020.01.15"]
[Round "7.16"]
[White "Chyzy, Jakub"]
[Black "Balinski, Damian"]
[Result "1-0"]
[ECO "B07"]
[WhiteElo "2291"]
[BlackElo "2139"]
[Annotator "RC"]
[PlyCount "71"]
[EventDate "2020.01.10"]
[EventType "swiss"]
[EventCountry "CZE"]
[SourceTitle "playchess.com"]
[Source "ChessBase"]
[SourceQuality "1"]
[TimeControl "40/5400+30:1800+30"]

1. e4 d6 2. d4 Nf6 3. Nc3 g6 4. f3 c6 5. Be3 b5 6. Qd2 Nbd7 7. g4 Nb6 8. h4 h5 9. g5 Nfd7 10. d5 c5 11. Bxb5 a6 12. Be2 Ne5 13. b3 Bg7 14. Nh3 a5 15. a4 O-O 16. Rd1 Ba6 17. O-O Ng4 18. fxg4 Bxc3 19. Qxc3 Bxe2 20. gxh5 Bxd1 21. Rxd1 Qc8 22. Nf2 Nd7 23. Bf4 Rb8 24. Ng4 Rb4 25. Qf3 Rb7 26. Rf1 c4 27. Nh6+ Kh7 28. Bg3 f6 29. hxg6+ Kxg6 30. Nf5 Ne5 31. Bxe5 dxe5 32. h5+ Kf7 33. g6+ Kg8 34. g7 Rf7 35. Qg4 Qxf5 36. Qxf5 1-0

[Event "19th Prague Open-A 2020"]
[Site "Prague"]
[Date "2020.01.16"]
[Round "8.5"]
[White "Cernousek, Lukas"]
[Black "Nasshan, Dennis"]
[Result "1/2-1/2"]
[ECO "E04"]
[WhiteElo "2447"]
[BlackElo "2307"]
[Annotator "RC"]
[PlyCount "102"]
[EventDate "2020.01.10"]
[EventType "swiss"]
[EventCountry "CZE"]
[SourceTitle "playchess.com"]
[Source "ChessBase"]
[SourceQuality "1"]
[TimeControl "40/5400+30:1800+30"]

1. c4 {[%emt 0:00:00]} e6 {[%emt 0:00:00]} 2. Nf3 {[%emt 0:00:03]} Nf6 {[%emt 0:00:00]} 3. g3 {[%emt 0:00:39]} d5 {[%emt 0:00:00]} 4. d4 {[%emt 0:00:32]} dxc4 {[%emt 0:02:37]} 5. Bg2 {[%emt 0:00:05]} a6 {[%emt 0:00:55]} 6. O-O {[%emt 0:00:35]} Nc6 {[%emt 0:01:26]} 7. Bg5 {[%emt 0:02:24]} Be7 {[%emt 0:02:33]} 8. e3 {[%emt 0:00:06]} O-O {[%emt 0:02:29]} 9. Nfd2 {[%emt 0:26:00]} Na5 {[%emt 0:15:26]} 10. Qc2 {[%emt 0:06:11]} c5 {[%emt 0:02:57]} 11. dxc5 {[%emt 0:03:10]} Qc7 {[%emt 0:00:39]} 12. b4 {[%emt 0:11:09]} cxb3 {[%emt 0:02:48]} 13. axb3 {[%emt 0:00:06]} Nc6 {[%emt 0:00:25]} 14. Ne4 {[%emt 0:08:25]} Nb4 {[%emt 0:05:43]} 15. Qc4 {[%emt 0:01:33]} Nbd5 {[%emt 0:01:09]} 16. Nbc3 {[%emt 0:08:56]} h6 {[%emt 0:15:39]} 17. Bxf6 {[%emt 0:10:58]} Nxf6 {[%emt 0:00:55]} 18. Rfd1 {[%emt 0:00:02]} Nxe4 {[%emt 0:03:55]} 19. Nxe4 {[%emt 0:00:06]} Bd7 {[%emt 0:02:29]} 20. Nd6 {[%emt 0:00:03]} Bc6 {[%emt 0:01:08]} 21. e4 {[%emt 0:01:30]} Rfd8 {[%emt 0:12:45]} 22. e5 {[%emt 0:02:21]} Bxg2 {[%emt 0:01:03]} 23. Kxg2 {[%emt 0:00:01]} b6 {[%emt 0:02:55]} 24. c6 {[%emt 0:11:21]} Bxd6 {[%emt 0:03:30]} 25. exd6 {[%emt 0:00:04]} Rxd6 {[%emt 0:00:21]} 26. Rxd6 {[%emt 0:00:10]} Qxd6 {[%emt 0:00:04]} 27. c7 {[%emt 0:00:12]} Rc8 {[%emt 0:00:34]} 28. Rc1 {[%emt 0:01:23]} Qd5+ {[%emt 0:03:31]} 29. Qxd5 {[%emt 0:02:25]} exd5 {[%emt 0:00:01]} 30. Rc6 {[%emt 0:00:17]} Kf8 {[%emt 0:01:35]} 31. Kf3 {[%emt 0:00:15]} Ke7 {[%emt 0:00:13]} 32. Kf4 {[%emt 0:03:36]} Kd7 {[%emt 0:06:24]} 33. Rxb6 {[%emt 0:00:01]} Rxc7 {[%emt 0:00:09]} 34. Rxa6 {[%emt 0:00:02]} Rb7 {[%emt 0:00:46]} 35. Ke5 {[%emt 0:01:15]} Rxb3 {[%emt 0:00:57]} 36. Ra7+ {[%emt 0:00:11]} Ke8 {[%emt 0:00:31]} 37. Ra8+ {[%emt 0:00:06]} Ke7 {[%emt 0:00:17]} 38. Ra7+ {[%emt 0:00:06]} Ke8 {[%emt 0:00:01]} 39. f4 {[%emt 0:02:04]} Re3+ {[%emt 0:04:00]} 40. Kxd5 {[%emt 0:00:56]} Kf8 {[%emt 0:00:52]} 41. f5 {[%emt 0:02:27]} f6 {[%emt 0:02:34]} 42. Kd6 {[%emt 0:01:17]} Re5 {[%emt 0:06:11]} 43. g4 {[%emt 0:01:12]} Re4 {[%emt 0:00:25]} 44. h3 {[%emt 0:00:49]} Re3 {[%emt 0:01:11]} 45. h4 {[%emt 0:06:04]} Re4 {[%emt 0:00:17]} 46. Ra8+ {[%emt 0:00:26]} Kf7 {[%emt 0:00:17]} 47. Ra7+ {[%emt 0:00:03]} Kg8 {[%emt 0:01:09]} 48. g5 {[%emt 0:00:37]} hxg5 {[%emt 0:00:11]} 49. hxg5 {[%emt 0:00:04]} fxg5 {[%emt 0:00:05]} 50. Kd5 {[%emt 0:00:03]} Re1 {[%emt 0:00:51]} 51. Ra6 {[%emt 0:00:52]} Kf7 {[%emt 0:00:11] Ke4} 1/2-1/2